bitfinex/quotes_ETHUSD_20250725
["timestamp","ask_amount","ask_price","bid_price","bid_amount"]
[1753438535532,13.26956276,3717.8,3717.7,0.001]
[1753438536471,7.621,3717.8,3717.7,0.001]
[1753438537835,11.96317011,3717.8,3717.7,0.001]
[1753438538129,13.21577011,3717.8,3717.7,0.001]
[1753438540030,13.76577011,3717.8,3717.7,0.001]
[1753438540735,8.59477011,3717.8,3717.7,0.001]
[1753438541184,13.20877011,3717.8,3717.7,0.001]
[1753438541543,13.75877011,3717.8,3717.7,0.001]
[1753438542140,13.75877011,3717.8,3717.7,1e-08]
[1753438543473,8.59477011,3717.8,3717.7,1e-08]
[1753438543678,13.20577011,3717.8,3717.7,1e-08]
[1753438544467,4.06787011,3717.8,3717.7,1e-08]
[1753438544679,5.98810735,3717.8,3717.7,1e-08]
[1753438544867,4.61,3717.8,3717.7,1e-08]
[1753438545042,4.609,3717.8,3717.7,1e-08]
[1753438545671,7.609,3717.8,3717.7,1e-08]
[1753438545879,4.609,3717.8,3717.7,1e-08]
[1753438546179,4.608,3717.8,3717.7,1e-08]
[1753438546373,3.0,3717.8,3717.7,1e-08]
[1753438546563,1.2283,3718.7,3717.7,1.82103663]
[1753438546872,4.607,3718.6,3718.4,2.68926256]
[1753438547210,7.607,3718.5,3717.9,1.3337]
[1753438547365,4.607,3718.4,3718.0,0.25011564]
[1753438547562,4.607,3718.4,3718.1,0.25011564]
[1753438547778,1.2283,3718.3,3718.2,0.25011564]
[1753438547948,5.68940107,3718.3,3718.2,0.25011564]
[1753438548141,7.21631955,3718.3,3717.7,1e-08]
[1753438548360,3.0,3718.1,3717.8,0.2503095]
[1753438548558,7.605,3718.0,3717.9,0.2503095]
[1753438550786,3.0,3718.0,3717.9,0.2503095]
[1753438550946,3.0,3718.0,3717.9,0.2513095]
[1753438552152,7.6,3718.0,3717.9,4.14589991]
[1753438552353,3.0,3718.0,3717.9,4.49846711]
[1753438552558,3.0,3718.0,3717.9,6.02586711]
[1753438553355,3.0,3718.0,3717.9,5.86106711]
[1753438553684,3.0,3718.0,3717.9,0.3857095]
[1753438554973,3.0,3718.0,3717.9,0.2513095]
[1753438555357,3.0,3718.0,3717.9,1.4562095]
[1753438555557,3.0,3718.0,3717.9,0.2513095]
[1753438556304,3.0,3718.0,3717.9,0.25194546]
[1753438557492,3.0,3718.0,3717.9,1.45684546]
[1753438557678,3.0,3718.0,3717.9,1.59124546]
[1753438557991,3.0,3718.0,3717.9,0.38634546]
[1753438558358,3.0,3718.0,3717.9,4.28093587]
[1753438558862,3.0,3718.0,3717.9,0.38634546]
[1753438561057,5.68961807,3718.0,3717.9,0.25194546]
[1753438561257,7.21651807,3718.0,3717.9,0.25194546]
[1753438561496,11.80551807,3718.0,3717.9,0.25194546]
[1753438561795,11.93991807,3718.0,3717.9,0.25194546]
[1753438562355,7.35091807,3718.0,3717.9,0.25194546]
[1753438562559,7.7224,3718.0,3717.9,0.25194546]
[1753438562883,3.1344,3718.0,3717.9,0.25194546]
[1753438563076,7.587,3718.0,3717.9,0.25194546]
[1753438563278,10.70701807,3718.0,3717.9,0.25194546]
[1753438563492,11.93791807,3718.0,3717.9,0.25194546]
[1753438564719,11.93691807,3718.0,3717.9,0.25194546]
[1753438565312,11.93691807,3718.0,3717.9,0.001]
[1753438565681,7.35091807,3718.0,3717.9,0.001]
[1753438565894,11.93591807,3718.0,3717.9,0.001]
[1753438567991,13.15831807,3718.0,3717.9,0.001]
[1753438571107,12.06181807,3718.0,3717.9,0.001]
[1753438571307,2.68976276,3717.8,3717.7,1e-08]
[1753438571508,2.69034167,3717.0,3716.9,0.001]
[1753438571684,11.49294167,3717.0,3716.9,0.001]
[1753438572017,13.09174167,3717.0,3716.9,0.001]
[1753438573820,8.51474167,3717.0,3716.9,0.001]
[1753438574118,11.49094167,3717.0,3716.9,0.001]
[1753438574590,13.08974167,3717.0,3716.9,0.001]
[1753438574789,11.49094167,3717.0,3716.9,0.001]
[1753438575410,1.3042,3716.7,3714.1,1.2699]
[1753438575617,2.69097203,3716.2,3715.3,2.69156873]
[1753438575819,3.0,3716.0,3715.4,1.2391]
[1753438575990,4.573,3716.0,3715.4,1.2391]
[1753438576185,4.573,3716.0,3715.4,3.93059825]
[1753438576421,3.775059,3719.1,3715.4,1.90133123]
[1753438576422,1.1455,3717.0,3715.4,1.90133123]
[1753438576597,3.0,3716.5,3715.5,2.99060724]
[1753438576802,3.0,3716.3,3715.5,2.99060724]
[1753438577109,5.69088038,3716.3,3715.5,2.6914218]
[1753438577331,3.0,3716.3,3715.5,2.6914218]
[1753438577618,3.0,3716.3,3715.4,1.5389]
[1753438577824,4.571,3716.2,3715.5,2.69136126]
[1753438578121,3.0,3715.8,3715.4,1.2391]
[1753438578326,8.7165,3715.8,3715.1,1.3065]
[1753438578526,11.4077306,3715.8,3715.1,1.3065]
[1753438578730,8.7165,3715.8,3715.1,1.3065]
[1753438578916,3.0,3715.7,3715.2,2.69164513]
[1753438579122,3.0,3715.7,3715.1,1.3065]
[1753438579498,3.0,3715.7,3715.2,2.69164097]
[1753438579699,3.0,3715.7,3715.3,2.69155976]
[1753438580332,3.0,3715.7,3715.2,2.6916228]
[1753438580710,4.1455,3715.7,3715.2,2.6916228]
[1753438581199,4.1455,3715.7,3715.3,2.69156473]
[1753438581532,3.0,3715.7,3715.2,0.1344]
[1753438581722,4.569,3715.6,3715.2,0.1344]
[1753438581919,3.0,3715.5,3715.2,0.1344]
[1753438582118,4.5988,3715.5,3715.2,0.1344]
[1753438582431,0.4533,3715.9,3714.8,1.2526]
[1753438582635,3.1344,3715.7,3715.2,0.1344]
[1753438582829,3.0,3715.5,3715.2,0.1344]
[1753438583516,1.1455,3715.4,3715.2,0.1344]
[1753438583716,3.0,3715.3,3715.2,0.1344]
[1753438584098,4.1455,3715.3,3715.0,0.1344]
[1753438584432,3.0,3715.3,3715.0,0.1344]
[1753438584648,1.1455,3715.2,3715.0,0.1344]
[1753438585214,1.1455,3715.1,3715.0,0.1344]
[1753438585435,1.5988,3715.1,3715.0,0.1344]
[1753438586837,1.5988,3715.1,3714.9,0.1344]
[1753438587001,1.5988,3715.0,3714.9,0.1344]
[1753438587739,3.0,3715.3,3715.0,2.69179004]
[1753438587915,4.561,3715.4,3715.0,2.69178532]
[1753438588238,0.1344,3715.5,3715.4,2.69150024]
[1753438588397,4.561,3715.8,3715.4,0.1344]
[1753438588601,1.5988,3715.7,3715.4,0.1344]
[1753438588832,1.5988,3715.7,3714.9,1.2536]
[1753438589136,1.1455,3715.7,3715.4,2.69144639]
[1753438589305,4.56,3715.7,3715.4,2.69144639]
[1753438589504,4.56,3715.7,3715.5,2.8258278]
[1753438589702,4.56,3715.7,3715.6,2.69135536]
[1753438590257,1.2799,3716.0,3715.5,2.82580337]
[1753438590417,1.5988,3715.9,3715.5,2.82577717]
[1753438590744,7.559,3715.8,3715.6,2.69133079]
[1753438590916,7.559,3715.8,3715.7,2.69128293]
[1753438591324,1.1455,3716.7,3715.6,2.69135536]
[1753438591630,0.1344,3716.5,3716.0,2.69101379]
[1753438591953,3.1344,3716.5,3716.1,2.6909896]
[1753438592112,1.5988,3716.4,3716.1,2.6909896]
[1753438592450,1.5988,3716.4,3716.2,2.69090488]
[1753438592451,7.557,3716.3,3716.2,2.69090488]
[1753438592633,3.0,3716.2,3715.6,2.69135536]
[1753438592835,1.1455,3716.1,3715.6,2.69135536]
[1753438593048,1.5988,3716.0,3715.7,0.1344]
[1753438593455,0.4533,3716.0,3715.7,0.1344]
[1753438593631,0.4533,3716.0,3715.2,4.557]
[1753438593632,9.1548,3715.9,3715.0,1.2302]
[1753438593955,1.2799,3715.8,3715.3,2.82595954]
[1753438594263,0.4533,3715.7,3715.3,0.1344]
[1753438594437,1.1455,3715.6,3715.3,0.1344]
[1753438594971,3.0,3715.7,3715.3,0.1344]
[1753438595260,1.1455,3715.5,3715.3,0.1344]
[1753438595462,1.1455,3715.5,3715.1,0.1344]
[1753438595951,1.1455,3715.4,3715.1,0.1344]
[1753438596365,3.1344,3715.8,3715.0,0.001]
[1753438596366,3.0,3715.2,3715.0,0.001]
[1753438596654,3.1344,3715.2,3715.0,0.001]
[1753438596821,1.5599,3715.1,3715.0,0.001]
[1753438597020,0.1344,3715.2,3715.0,0.001]
[1753438597218,3.0,3715.3,3715.0,0.001]
[1753438597460,3.1344,3715.3,3715.0,0.001]
[1753438597960,1.1165,3715.2,3715.0,0.001]
[1753438598263,1.5599,3715.2,3715.0,0.001]
[1753438598439,1.1165,3715.2,3715.0,0.001]
[1753438598621,0.1344,3715.3,3715.0,0.001]
[1753438599158,1.2509,3715.3,3715.0,0.001]
[1753438599364,3.0,3715.5,3715.0,0.001]
[1753438599669,3.1344,3715.5,3715.0,1.4857]
[1753438599892,1.1165,3715.4,3715.0,1.4857]
[1753438600169,1.1165,3715.3,3715.0,4.17748291]
[1753438600342,1.1165,3715.3,3715.0,1.4857]
[1753438600659,3.5778,3715.5,3715.0,1.4857]
[1753438600818,3.5778,3715.5,3715.2,2.69164262]
[1753438601025,3.1344,3715.5,3715.0,4.17748402]
[1753438601236,3.0,3715.5,3715.0,4.17748402]
[1753438601537,3.0,3715.5,3715.2,2.6915962]
[1753438601858,1.1165,3715.7,3715.0,1.3513]
[1753438602048,1.2509,3715.7,3715.4,2.69148494]
[1753438602361,3.1344,3715.7,3715.2,0.1344]
[1753438602564,3.0,3715.7,3715.5,2.69138329]
[1753438602725,1.1165,3715.6,3715.4,2.69147922]
[1753438602931,4.5599,3715.6,3715.2,0.1344]
[1753438603128,0.4434,3715.5,3715.2,0.1344]
[1753438603450,1.1165,3715.4,3715.2,2.82602482]
[1753438603648,1.1165,3715.4,3715.2,0.1344]
[1753438603834,1.1165,3715.3,3715.2,0.1344]
[1753438604036,0.4434,3715.6,3715.2,0.1344]
[1753438604235,1.1165,3715.5,3715.2,2.8260365]
[1753438604950,1.1165,3715.5,3715.2,0.1344]
[1753438605165,0.4434,3715.6,3715.2,0.1344]
[1753438605333,3.1344,3715.8,3715.3,2.69150457]
[1753438605530,0.1344,3716.1,3715.6,2.69129449]
[1753438605735,3.13419924,3716.4,3715.7,2.69125583]
[1753438605954,1.1165,3716.0,3715.7,2.82565583]
[1753438606163,1.1165,3716.0,3715.7,0.1344]
[1753438606564,1.1165,3715.9,3715.7,0.1344]
[1753438606768,1.1165,3715.9,3715.7,2.82565775]
[1753438607272,1.1165,3715.9,3715.7,2.82565447]
[1753438607646,1.1165,3715.9,3715.7,2.82566892]
[1753438607847,2.8253288,3716.2,3715.7,0.1344]
[1753438608085,1.1165,3715.8,3715.7,0.1344]
[1753438608579,1.1165,3715.8,3715.7,2.82568293]
[1753438608741,1.1165,3716.1,3715.7,2.82568293]
[1753438608941,5.6575,3716.5,3715.9,2.69107739]
[1753438609153,3.1344,3716.4,3715.9,0.1344]
[1753438609445,4.2509,3716.4,3716.0,2.69104181]
[1753438609747,1.5599,3716.3,3715.9,0.1344]
[1753438609951,1.5599,3716.3,3716.2,2.69092083]
[1753438610179,1.1165,3716.3,3716.2,2.69092083]
[1753438610886,1.1165,3716.3,3716.1,2.6909672]
[1753438611242,3.0,3716.4,3716.1,2.6909672]
[1753438611474,1.1165,3716.3,3715.9,2.82552342]
[1753438611675,0.4434,3716.3,3715.9,0.1344]
[1753438611973,1.1165,3716.2,3716.0,2.69106566]
[1753438612171,1.1165,3716.2,3715.9,0.1344]
[1753438612498,1.1165,3716.2,3716.1,2.69099324]
[1753438613016,1.1165,3716.2,3716.0,2.69101982]
[1753438613196,1.1165,3716.1,3716.0,2.69101982]
[1753438614291,1.5599,3716.1,3716.0,2.69101982]
[1753438615007,1.5599,3716.1,3715.7,4.6684]
[1753438615163,1.5599,3716.0,3715.7,7.35962456]
[1753438615363,1.3275,3716.6,3715.8,1.2513]
[1753438615568,1.1165,3716.3,3715.9,2.82553808]
[1753438615887,0.4434,3716.2,3715.9,2.82553808]
[1753438616301,1.5599,3716.1,3716.0,2.69105896]
[1753438617313,1.1165,3716.1,3716.0,2.69105896]
[1753438617525,2.444,3716.6,3716.2,2.69087118]
[1753438617685,4.2509,3716.5,3715.9,0.1344]
[1753438618018,3.0,3716.3,3715.9,0.1344]
[1753438618310,3.0,3716.3,3715.8,0.1344]
[1753438618311,3.1344,3716.3,3715.8,0.1344]
[1753438618682,1.5599,3716.2,3715.8,2.82554075]
[1753438619018,1.5599,3716.2,3715.8,0.1344]
[1753438619322,1.5599,3716.1,3715.8,0.1344]
[1753438619531,0.1344,3716.3,3715.9,2.69113808]
[1753438619710,1.2509,3716.3,3716.1,2.69094214]
[1753438619885,1.1165,3716.3,3716.1,2.69094214]
[1753438620083,1.1165,3716.3,3716.2,2.69092083]
[1753438620314,1.1165,3716.3,3716.1,2.69096387]
[1753438620517,1.1165,3716.3,3716.1,2.69097744]
[1753438620813,0.4434,3716.6,3716.0,2.69105102]
[1753438620814,1.5599,3716.2,3716.0,2.69105102]
[1753438621010,1.1165,3716.2,3716.0,2.69105102]
[1753438621203,3.1344,3716.5,3716.2,2.69087341]
[1753438621204,0.1344,3716.5,3716.2,2.69087341]
[1753438621405,0.1344,3716.5,3716.1,2.69098114]
[1753438621595,1.1165,3716.4,3716.1,2.69098114]
[1753438621799,1.1165,3716.3,3716.1,2.69098114]
[1753438621997,0.4434,3716.4,3716.3,2.69084842]
[1753438622198,2.69021142,3717.2,3716.4,1.264]
[1753438622389,0.1344,3717.1,3716.5,2.69070361]
[1753438622588,1.1165,3717.3,3716.9,2.69041405]
[1753438622894,1.2509,3717.3,3716.9,2.69041405]
[1753438623221,1.1185,3717.7,3716.9,8.48141405]
[1753438623427,2.69005188,3717.5,3716.8,0.1344]
[1753438623597,1.1185,3717.0,3716.5,1.264]
[1753438623802,1.1185,3717.0,3716.9,2.69041405]
[1753438624004,0.002,3717.0,3716.9,2.69041405]
[1753438624220,0.002,3717.0,3716.9,2.82481405]
[1753438624733,0.002,3717.0,3716.9,7.34981405]
[1753438626435,0.002,3717.0,3716.9,9.96091692]
[1753438627120,0.1364,3717.7,3717.6,2.68990746]
[1753438627431,1e-08,3717.7,3717.6,8.55060746]
[1753438627618,1e-08,3717.7,3717.6,9.24320746]
[1753438628332,0.002,3718.0,3717.9,4.57939041]
[1753438628333,1e-08,3718.0,3717.9,4.57939041]
[1753438628501,1e-08,3718.0,3717.9,10.3487802]
[1753438628704,1e-08,3718.0,3717.9,5.9703802]
[1753438628902,1e-08,3718.0,3717.9,5.4121802]
[1753438629115,1e-08,3718.0,3717.9,9.9321802]
[1753438629911,1e-08,3718.0,3717.9,5.4121802]
[1753438630100,1e-08,3718.0,3717.9,8.5904802]
[1753438630723,1.58230001,3718.0,3717.9,2.82409041]
[1753438630926,1.14590001,3718.0,3717.9,2.82409041]
[1753438631126,1e-08,3718.0,3717.9,2.82409041]
[1753438631517,1.14590001,3718.0,3717.9,2.82409041]
[1753438631841,1.14590001,3718.0,3717.9,7.34109041]
[1753438632551,1e-08,3718.0,3717.9,8.46962741]
[1753438632841,1e-08,3718.0,3717.9,8.99082741]
[1753438633037,1e-08,3718.0,3717.9,10.29822741]
[1753438633240,1e-08,3718.0,3717.9,9.77702741]
[1753438633827,1e-08,3718.0,3717.9,10.07622741]
[1753438634244,1e-08,3718.0,3717.9,9.77702741]
[1753438634948,1e-08,3718.0,3717.9,5.26002741]
[1753438635113,1e-08,3718.0,3717.9,9.77502741]
[1753438635313,1e-08,3718.0,3717.9,9.77302741]
[1753438635921,1e-08,3718.0,3717.9,8.64349041]
[1753438636121,1.14590001,3718.0,3717.9,8.64349041]
[1753438636723,1.58230001,3718.0,3717.9,7.33509041]
[1753438637950,1.58230001,3718.0,3717.9,4.6454]
[1753438638247,1.58230001,3718.0,3717.9,0.1344]
[1753438638452,3.0,3717.9,3717.6,4.51]
[1753438638652,3.13440001,3718.0,3717.6,4.51]
[1753438638855,1.5823,3717.8,3717.6,4.51]
[1753438639019,1.5823,3717.7,3717.6,4.51]
[1753438639424,1.5823,3717.7,3717.4,2.82443457]
[1753438639425,1.5823,3717.7,3717.4,0.1344]
[1753438639624,1.2468,3717.6,3717.5,4.509]
[1753438639858,2.8291,3717.6,3717.5,4.509]
[1753438640055,3.0,3717.5,3717.4,2.82444573]
[1753438640230,1.5823,3717.5,3717.4,7.33344573]
[1753438640556,1.5823,3717.5,3717.4,7.33244573]
[1753438640853,1.5823,3717.5,3717.4,7.33144573]
[1753438641151,4.5823,3717.5,3717.2,2.69018815]
[1753438641354,4.5823,3717.4,3717.2,2.69019692]
[1753438641558,3.43640001,3718.0,3717.2,4.95385938]
[1753438641737,1.58230001,3718.0,3717.6,2.68984354]
[1753438641936,1.1459,3717.9,3717.7,2.68982118]
[1753438642135,1.5823,3717.9,3717.6,0.1344]
[1753438642339,1e-08,3718.0,3717.8,2.68976276]
[1753438642592,1e-08,3718.0,3717.9,2.68969041]
[1753438643065,1e-08,3718.0,3717.9,2.82409041]
[1753438643430,1.58230001,3718.0,3717.9,0.1344]
[1753438643630,1.58230001,3718.0,3717.9,4.506]
[1753438644368,4.2808,3717.9,3717.8,4.505]
[1753438644677,1.5823,3717.9,3717.8,2.68976276]
[1753438644858,1.5823,3717.9,3717.7,7.19381377]
[1753438645034,1e-08,3718.0,3717.7,7.19381377]
[1753438645231,1.5823,3717.8,3717.7,7.19381377]
[1753438645854,1e-08,3718.0,3717.7,4.504]
[1753438646054,1.5823,3717.9,3717.7,4.504]
[1753438646260,1e-08,3718.0,3717.7,4.504]
[1753438646261,1.5823,3717.8,3717.7,2.68983511]
[1753438646467,1.5823,3717.8,3717.7,7.19183511]
[1753438647939,3.0,3717.7,3717.6,4.501]
[1753438648252,1.5823,3717.7,3717.6,7.19090746]
[1753438648474,4.5823,3717.7,3717.6,4.501]
[1753438649443,4.5823,3717.7,3717.4,0.1344]
[1753438649643,1.5823,3717.6,3717.5,7.18897713]
[1753438650029,1.1459,3717.6,3717.5,7.18897713]
[1753438650239,1.1459,3717.8,3717.5,4.499]
[1753438650438,3.43640001,3718.0,3717.5,7.18894959]
[1753438650662,0.43640001,3718.0,3717.7,2.68978089]
[1753438650871,1.1459,3717.9,3717.6,0.1344]
[1753438651175,0.4364,3717.8,3717.6,2.82430154]
[1753438651371,1e-08,3718.0,3717.6,2.82430154]
[1753438651574,1e-08,3718.0,3717.6,2.82428111]
[1753438652035,1.5823,3717.9,3717.6,2.82428111]
[1753438652240,1.5823,3717.8,3717.6,0.1344]
[1753438652470,1.5823,3717.8,3717.6,2.82430306]
[1753438652770,1.5823,3717.7,3717.6,2.82430306]
[1753438654550,1.5823,3717.7,3717.3,2.69012138]
[1753438654738,3.0,3717.8,3717.4,4.495]
[1753438654739,1.5823,3717.6,3717.4,4.495]
[1753438654945,1.5823,3717.5,3717.4,4.495]
[1753438655179,1.5823,3717.5,3717.4,4.494]
[1753438655362,1.5823,3717.5,3717.4,7.18405218]
[1753438655541,1.2803,3717.8,3717.7,2.68983511]
[1753438655741,0.5708,3717.8,3717.7,2.68983511]
[1753438656377,1.621,3717.8,3717.7,2.68983511]
[1753438657346,1.621,3717.8,3717.4,7.1840464]
[1753438657547,0.5708,3717.8,3717.7,2.68983511]
[1753438657772,0.1344,3717.8,3717.5,2.68993832]
[1753438657974,0.4311,3717.7,3717.5,2.68993832]
[1753438658147,1.0502,3717.6,3717.5,2.68993832]
[1753438658772,0.1344,3717.8,3717.7,2.68983511]
[1753438658973,3.00000001,3718.0,3717.9,2.68969041]
[1753438659150,3.00000001,3718.0,3717.6,0.1344]
[1753438659342,1.0502,3717.9,3717.7,2.68983511]
[1753438659539,1.4813,3717.9,3717.7,2.68983511]
[1753438659744,1.4813,3717.8,3717.7,2.68983511]
[1753438661682,1e-08,3718.0,3717.9,2.68969041]
[1753438661980,1.05020001,3718.0,3717.9,2.68969041]
[1753438662877,1.48130001,3718.0,3717.7,2.68980753]
[1753438663087,0.43110001,3718.0,3717.9,2.68969041]
[1753438663594,1e-08,3718.0,3717.9,2.68969041]
[1753438663791,1e-08,3718.0,3717.9,4.07972015]
[1753438664461,1e-08,3718.0,3717.9,5.51152015]
[1753438664787,1e-08,3718.0,3717.9,5.81072015]
[1753438667281,1e-08,3718.0,3717.9,6.36072015]
[1753438667653,1e-08,3718.0,3717.9,10.84272015]
[1753438667865,1e-08,3718.0,3717.9,10.29272015]
[1753438668270,1e-08,3718.0,3717.9,5.62962015]
[1753438668473,1e-08,3718.0,3717.9,10.11162015]
[1753438668679,1e-08,3718.0,3717.9,10.29272015]
[1753438669188,1e-08,3718.0,3717.9,10.29072015]
[1753438669686,1e-08,3718.0,3717.9,10.10962015]
[1753438669986,1e-08,3718.0,3717.9,9.81042015]
[1753438670291,1e-08,3718.0,3717.9,10.29072015]
[1753438671189,1e-08,3718.0,3717.9,5.33042015]
[1753438671483,1e-08,3718.0,3717.9,9.80942015]
[1753438671888,1e-08,3718.0,3717.9,10.10862015]
[1753438672391,1e-08,3718.0,3717.9,5.33042015]
[1753438672618,1e-08,3718.0,3717.9,9.80742015]
[1753438672951,1.05020001,3718.0,3717.9,2.82409041]
[1753438673157,1.48130001,3718.0,3717.9,7.30009041]
[1753438673464,1.05020001,3718.0,3717.9,7.30009041]
[1753438673893,1.48130001,3718.0,3717.9,2.82409041]
[1753438674278,1.48130001,3718.0,3717.9,7.29909041]
[1753438674591,1e-08,3718.0,3717.9,2.82409041]
[1753438674892,1.05020001,3718.0,3717.9,7.29909041]
[1753438677102,1.05020001,3718.0,3717.9,2.82409041]
[1753438677317,1.05020001,3718.0,3717.9,7.29709041]
[1753438677798,1.05020001,3718.0,3717.9,7.29609041]
[1753438678002,1.48130001,3718.0,3717.9,7.29609041]
[1753438678371,1.05020001,3718.0,3717.9,8.29477664]
[1753438678703,1e-08,3718.0,3717.9,8.29377664]
[1753438679218,1e-08,3718.0,3717.9,9.56027664]
[1753438679522,1e-08,3718.0,3717.9,10.59057664]
[1753438679810,1e-08,3718.0,3717.9,10.11027664]
[1753438679966,1e-08,3718.0,3717.9,5.63927664]
[1753438680168,1e-08,3718.0,3717.9,8.29277664]
[1753438680394,1.48130001,3718.0,3717.9,7.29409041]
[1753438680624,1.05020001,3718.0,3717.9,7.29409041]
[1753438680901,1.05020001,3718.0,3717.9,2.82409041]
[1753438681097,1.05020001,3718.0,3717.9,7.29409041]
[1753438681297,1.48130001,3718.0,3717.9,7.29309041]
[1753438681499,1.05020001,3718.0,3717.9,7.29309041]
[1753438682462,1e-08,3718.0,3717.9,8.41912664]
[1753438682775,1e-08,3718.0,3717.9,8.71832664]
[1753438682975,1e-08,3718.0,3717.9,3.95012664]
[1753438683181,1.05020001,3718.0,3717.9,8.41812664]
[1753438683376,1.05020001,3718.0,3717.9,3.95012664]
[1753438683608,1.05020001,3718.0,3717.9,8.41712664]
[1753438683914,1.05020001,3718.0,3717.9,3.95012664]
[1753438684216,1.48130001,3718.0,3717.9,7.29109041]
[1753438685079,1.48130001,3718.0,3717.9,2.82509041]
[1753438685285,1.48130001,3718.0,3717.9,7.29009041]
[1753438685485,1.05020001,3718.0,3717.9,7.29009041]
[1753438686598,1.48760001,3718.0,3717.9,7.29009041]
[1753438687504,1.05020001,3718.0,3717.9,7.29009041]
[1753438688583,1.48760001,3718.0,3717.9,0.1354]
[1753438688784,4.48760001,3718.0,3717.9,0.001]
[1753438688984,4.48760001,3718.0,3717.7,4.5954]
[1753438689223,1.452,3717.9,3717.7,4.5954]
[1753438689517,1.452,3717.9,3717.7,7.28520665]
[1753438689720,3.00000001,3718.0,3717.7,4.5954]
[1753438689925,1.452,3717.8,3717.7,4.5954]
[1753438690227,1.452,3717.8,3717.7,7.28523511]
[1753438690604,1.452,3717.8,3717.7,4.5954]
[1753438690806,1.452,3717.8,3717.7,0.1344]
[1753438691191,1.452,3717.8,3717.7,2.82423511]
[1753438692830,1.452,3717.8,3717.7,0.1344]
[1753438692996,1.452,3717.8,3717.6,0.001]
[1753438693340,1.452,3717.7,3717.6,0.001]
[1753438694044,14.69404777,3717.7,3717.6,0.001]
[1753438694210,14.82844777,3717.7,3717.6,0.001]
[1753438694833,1.2965,3717.5,3717.1,0.001]
[1753438695142,0.1344,3717.2,3717.1,0.001]
[1753438695501,1.5864,3717.2,3717.1,0.001]
[1753438695707,2.3111,3717.5,3717.1,0.001]
[1753438695907,1.2965,3717.5,3717.2,2.69019574]
[1753438696089,0.1344,3717.6,3717.1,0.001]
[1753438696296,4.2956,3717.8,3717.4,0.1344]
[1753438696625,4.733,3717.8,3717.7,2.68983511]
[1753438696824,0.4374,3717.8,3717.7,2.68983511]
[1753438697126,1e-08,3718.0,3717.9,2.68969041]
[1753438697328,1e-08,3718.0,3717.9,7.14369041]
[1753438697652,1e-08,3718.0,3717.9,7.27809041]
[1753438698024,1.01460001,3718.0,3717.9,7.27809041]
[1753438698230,1.01460001,3718.0,3717.9,2.82409041]
[1753438698527,1.45200001,3718.0,3717.9,7.27709041]
[1753438699320,1e-08,3718.0,3717.9,7.27709041]
[1753438699661,1.01460001,3718.0,3717.9,7.27709041]
[1753438700409,1.01460001,3718.0,3717.9,2.82409041]
[1753438700615,1.45200001,3718.0,3717.9,7.27609041]
[1753438701143,1.45200001,3718.0,3717.9,2.82409041]
[1753438701720,1.45200001,3718.0,3717.9,7.27409041]
[1753438702257,1.01460001,3718.0,3717.9,7.27409041]
[1753438702831,1.01460001,3718.0,3717.9,2.82409041]
[1753438703051,1.45200001,3718.0,3717.9,7.27409041]
[1753438704519,1.45200001,3718.0,3717.9,0.001]
[1753438704861,8.42431808,3718.0,3717.9,0.001]
[1753438705018,5.73470001,3718.0,3717.9,0.001]
[1753438705755,4.28270001,3718.0,3717.9,2.69069041]
[1753438705920,1e-08,3718.0,3717.9,2.69069041]
[1753438706833,1e-08,3718.0,3717.9,7.13669041]
[1753438709037,1e-08,3718.0,3717.9,8.29623679]
[1753438709260,1e-08,3718.0,3717.9,8.72683679]
[1753438709963,1e-08,3718.0,3717.9,8.59643679]
[1753438710460,1e-08,3718.0,3717.9,10.23755563]
[1753438712865,1e-08,3718.0,3717.9,5.79155563]
[1753438713070,1e-08,3718.0,3717.9,10.35295563]
[1753438713235,1e-08,3718.5,3718.4,4.47552874]
[1753438713554,1e-08,3718.5,3718.4,9.88254215]
[1753438713765,1e-08,3718.5,3718.4,4.89354215]
[1753438713933,1e-08,3718.5,3718.4,9.33254215]
[1753438714133,1e-08,3718.5,3718.4,8.09634215]
[1753438714337,1.01460001,3718.5,3718.4,2.94084758]
[1753438714558,1.45200001,3718.5,3718.4,7.37884758]
[1753438714965,2.76840001,3718.5,3718.4,0.25151884]
[1753438715131,5.76840001,3718.5,3718.4,4.68951884]
[1753438715331,5.76840001,3718.5,3718.4,0.25151884]
[1753438716332,5.76840001,3718.5,3718.4,0.13082884]
[1753438717950,8.45765643,3718.5,3718.4,0.13082884]
[1753438719564,1e-08,3718.5,3718.4,2.82015758]
[1753438719775,1e-08,3718.8,3718.7,2.68911178]
[1753438719975,0.002,3720.0,3719.9,2.6882443]
[1753438720429,1.4561,3720.0,3719.9,2.6882443]
[1753438720861,1.4561,3720.0,3719.1,4.02390778]
[1753438721165,0.9956,3719.9,3719.8,2.68830475]
[1753438721356,0.002,3720.0,3719.9,2.6882443]
[1753438722682,0.002,3720.0,3719.9,2.9884443]
[1753438722845,0.002,3720.0,3719.9,3.0958443]
[1753438723040,0.002,3720.0,3719.9,4.24842921]
[1753438723363,0.002,3720.0,3719.9,3.97522921]
[1753438723534,1e-08,3720.0,3719.9,4.38282921]
[1753438723869,1e-08,3720.0,3719.9,4.93282921]
[1753438724054,1e-08,3720.0,3719.9,6.21561165]
[1753438724255,1e-08,3720.8,3720.7,4.49356629]
[1753438724430,1e-08,3720.8,3720.7,9.37192292]
[1753438724630,1e-08,3720.8,3720.7,8.95632292]
[1753438724841,1e-08,3720.8,3720.7,4.52732292]
[1753438725040,1e-08,3720.8,3720.7,8.50696629]
[1753438725456,1e-08,3720.8,3720.7,8.71332115]
[1753438728557,1e-08,3720.8,3720.7,8.70932115]
[1753438729777,1e-08,3720.8,3720.7,9.66692115]
[1753438729981,1e-08,3720.8,3720.7,10.90238947]
[1753438730171,1e-08,3720.8,3720.7,10.79498947]
[1753438730367,1e-08,3720.8,3720.7,10.49478947]
[1753438730687,1e-08,3720.8,3720.7,9.94278947]
[1753438731866,1.45410001,3720.8,3720.3,1.3213]